bitfinex-derivatives/quotes_SOLF0:USTF0_20241103
["timestamp","ask_amount","ask_price","bid_price","bid_amount"]
[1730647323751,18.94,158.39,158.2,4.481]
[1730647323948,18.94,158.39,158.21,4.7]
[1730647324262,0.5344,158.38,158.21,4.7]
[1730647324459,0.5344,158.38,158.25,3.1606]
[1730647324460,18.94,158.37,158.25,3.1606]
[1730647324663,18.94,158.37,158.21,4.7]
[1730647324664,18.94,158.37,158.22,1.4508]
[1730647325063,3.1599,158.29,158.25,3.1606]
[1730647325359,3.1599,158.29,158.22,1.4508]
[1730647325360,23.64,158.35,158.22,1.4508]
[1730647325561,23.64,158.35,158.22,4.612]
[1730647325951,3.1601,158.28,158.22,4.612]
[1730647326155,23.64,158.35,158.25,3.1606]
[1730647326351,23.64,158.35,158.22,1.4508]
[1730647326749,3.13711778,158.37,158.22,1.4508]
[1730647326750,18.94,158.37,158.22,1.4508]
[1730647327047,23.64,158.37,158.22,1.4508]
[1730647327248,23.64,158.37,158.25,3.1605]
[1730647327450,4.7,158.37,158.22,1.4508]
[1730647327748,21.6755,158.4,158.31,3.1592]
[1730647327957,21.6755,158.4,158.22,1.4508]
[1730647327958,2.7355,158.4,158.28,7.83723559]
[1730647328264,2.7355,158.4,158.22,1.4508]
[1730647328265,3.1578,158.39,158.32,3.1592]
[1730647328444,3.1578,158.39,158.32,4.7]
[1730647328645,1.5138,158.4,158.32,4.7]
[1730647329449,3.1586,158.36,158.32,4.7]
[1730647329748,1.5138,158.4,158.3,1.5516]
[1730647329950,3.1588,158.35,158.3,4.7112]
[1730647330149,3.1588,158.35,158.3,1.5516]
[1730647330762,3.1586,158.36,158.3,1.5516]
[1730647331754,3.1584,158.37,158.33,3.1589]
[1730647331949,1.5138,158.4,158.33,3.1589]
[1730647332459,1.5138,158.4,158.34,3.1587]
[1730647332952,1.5138,158.4,158.32,3.20721582]
[1730647332953,3.1578,158.4,158.32,3.20721582]
[1730647333261,25.1003,158.44,158.3,1.5516]
[1730647333460,3.1586,158.36,158.3,1.5516]
[1730647333758,3.1586,158.36,158.31,3.1593]
[1730647334149,25.1003,158.44,158.29,1.5361]
[1730647334354,18.94,158.4,158.29,1.5361]
[1730647334856,3.1587,158.35,158.3,3.1596]
[1730647335051,23.64,158.43,158.29,1.5361]
[1730647335456,23.64,158.43,158.33,3.1589]
[1730647335757,23.64,158.43,158.32,4.7]
[1730647336760,3.1586,158.36,158.32,4.7]
[1730647337065,23.64,158.43,158.32,4.7]
[1730647337254,18.94,158.4,158.32,4.7]
[1730647337461,18.94,158.4,158.29,4.6959]
[1730647337859,18.94,158.4,158.28,4.7]
[1730647338054,18.94,158.4,158.17,3.0365]
[1730647338055,1.08099038,158.39,158.17,3.0365]
[1730647338256,18.94,158.37,158.17,3.0365]
[1730647338465,3.1614,158.22,158.17,3.0365]
[1730647338649,23.64,158.27,158.17,3.0365]
[1730647338857,23.64,158.27,158.11,4.7]
[1730647338858,3.1617,158.2,158.13,4.7]
[1730647339061,1.4752,158.26,158.13,4.7]
[1730647339062,22.1726,158.26,158.13,4.7]
[1730647339764,22.1726,158.26,158.13,7.863]
[1730647339958,22.1726,158.26,158.12,3.0365]
[1730647340861,3.1624,158.17,158.12,3.0365]
[1730647341660,3.1625,158.16,158.12,3.0365]
[1730647341970,4.7,158.21,158.12,3.0365]
[1730647342156,22.1726,158.26,158.12,3.0365]
[1730647342359,4.7,158.25,158.14,3.1627]
[1730647342560,4.7,158.25,158.12,3.0365]
[1730647342771,3.2326,158.26,158.12,3.0365]
[1730647342965,3.2326,158.26,158.16,3.1624]
[1730647343171,3.2326,158.26,158.12,3.0365]
[1730647343769,3.1614,158.21,158.16,3.1623]
[1730647344063,3.2326,158.26,158.12,3.0365]
[1730647344370,3.2326,158.26,158.16,3.1624]
[1730647344555,22.1726,158.26,158.12,3.0365]
[1730647345054,3.1618,158.2,158.15,3.1625]
[1730647345253,22.1726,158.26,158.15,3.1625]
[1730647345864,22.1726,158.26,158.16,3.1622]
[1730647346068,1.4752,158.26,158.12,3.0365]
[1730647346264,1.4752,158.26,158.13,1.4616]
[1730647346466,1.4752,158.26,158.17,3.1621]
[1730647347558,3.1614,158.22,158.17,3.1621]
[1730647348173,3.1614,158.21,158.17,3.1621]
[1730647349060,3.1614,158.21,158.12,3.0365]
[1730647349061,20.4152,158.26,158.05,4.7]
[1730647349669,20.4152,158.26,158.06,4.7]
[1730647350060,20.4152,158.26,158.09,3.1637]
[1730647350270,29.9613,158.25,158.07,4.7]
[1730647350476,30.9613,158.25,158.07,4.7]
[1730647350781,18.94,158.19,158.09,3.1638]
[1730647350974,23.64,158.19,158.09,3.1638]
[1730647351277,3.1629,158.14,158.09,3.1638]
[1730647352078,3.1626,158.15,158.07,4.7]
[1730647352577,3.1626,158.16,158.11,3.1633]
[1730647352774,18.94,158.2,158.07,4.7]
[1730647353471,1.0,158.25,158.07,4.7]
[1730647353875,6.465,158.29,158.18,3.1618]
[1730647353876,3.1612,158.22,158.18,3.1618]
[1730647354268,1.765,158.29,158.15,4.7]
[1730647354584,1.765,158.29,158.2,3.1615]
[1730647355071,1.765,158.29,158.16,3.1263]
[1730647355678,1.765,158.29,158.18,3.162]
[1730647356076,3.1613,158.22,158.16,3.1263]
[1730647356273,3.1613,158.22,158.17,3.162]
[1730647357771,3.1616,158.2,158.16,3.1263]
[1730647357974,3.1616,158.2,158.16,1.5761]
[1730647358177,18.94,158.27,158.15,4.7]
[1730647358375,18.94,158.24,158.13,3.163]
[1730647358571,1.5552,158.23,158.13,3.163]
[1730647358773,3.1616,158.2,158.13,3.163]
[1730647358971,1.5552,158.23,158.13,3.163]
[1730647359372,3.162,158.18,158.13,3.163]
[1730647359575,1.5552,158.23,158.15,3.1626]
[1730647360775,3.1618,158.2,158.15,3.1626]
[1730647361291,3.1618,158.2,158.11,4.7]
[1730647361292,3.1615,158.21,158.13,3.14519167]
[1730647361477,3.1615,158.21,158.0,51.801]
[1730647361478,23.64,158.2,157.99,6.3314]
[1730647361678,1.2277,158.19,158.01,3.0445]
[1730647362383,3.1637,158.1,158.02,4.7]
[1730647362584,1.2277,158.19,158.02,4.7]
[1730647363090,3.1638,158.1,158.04,3.1647]
[1730647363301,1.2277,158.19,158.04,3.1647]
[1730647363480,22.1027,158.15,158.04,3.1647]
[1730647363789,1.487,158.14,158.04,3.1647]
[1730647364183,3.1633,158.12,158.05,3.1646]
[1730647365099,1.2277,158.19,158.02,4.7]
[1730647365289,1.5653,158.18,158.02,4.7]
[1730647365683,3.1625,158.16,158.08,3.1639]
[1730647366191,1.5653,158.18,158.08,3.1639]
[1730647366393,3.1627,158.15,158.08,3.1639]
[1730647367195,3.1623,158.17,158.08,3.1638]
[1730647367493,1.5653,158.18,158.02,4.7]
[1730647368283,3.1633,158.12,158.05,3.1646]
[1730647368982,3.1633,158.12,158.03,4.7]
[1730647369181,1.5653,158.18,158.03,4.7]
[1730647369895,6.2653,158.18,158.03,4.7]
[1730647370083,1.2277,158.19,158.03,4.7]
[1730647370292,3.162,158.18,158.12,3.1631]
[1730647370486,1.2277,158.19,158.08,3.096905]
[1730647370689,1.2277,158.19,158.03,4.7]
[1730647370988,3.1622,158.17,158.07,3.1641]
[1730647371195,3.1622,158.17,158.08,1.4635]
[1730647371390,0.5378,158.2,158.08,1.4635]
[1730647371594,25.1095,158.22,158.09,7.7438]
[1730647372104,3.1622,158.18,158.09,7.7438]
[1730647372686,3.1622,158.17,158.12,3.1631]
[1730647372992,25.1095,158.22,158.09,7.7438]
[1730647373290,3.1621,158.18,158.13,3.1629]
[1730647375495,3.1618,158.2,158.12,3.163]
[1730647375685,6.1695,158.22,158.09,7.7438]
[1730647376085,3.1619,158.19,158.13,3.1628]
[1730647376286,25.1095,158.22,158.09,7.7438]
[1730647376485,0.5396,158.21,158.09,7.7438]
[1730647376698,3.1624,158.17,158.11,3.1633]
[1730647377095,3.1624,158.17,158.09,7.7438]
[1730647377688,3.1624,158.16,158.09,7.7438]
[1730647378602,3.1624,158.16,158.11,3.1633]
[1730647380101,3.1622,158.18,158.09,7.7438]
[1730647380301,0.5396,158.21,158.09,7.7438]
[1730647380810,20.4095,158.22,158.09,7.7438]
[1730647381301,20.4095,158.22,158.13,3.1628]
[1730647381302,3.162,158.18,158.13,3.1628]
[1730647381507,1.4695,158.22,158.09,7.7438]
[1730647381896,3.1618,158.2,158.09,7.7438]
[1730647382510,3.1613,158.22,158.09,7.7438]
[1730647382910,0.538,158.26,158.09,7.7438]
[1730647383616,0.538,158.26,158.18,3.1619]
[1730647383817,1.4547,158.29,158.16,3.13664908]
[1730647384014,1.4547,158.29,158.22,3.1611]
[1730647384308,1.4547,158.29,158.17,7.6815]
[1730647384498,20.3947,158.29,158.17,7.6815]
[1730647384903,3.1613,158.22,158.17,7.6815]
[1730647385219,20.3947,158.29,158.17,7.6815]
[1730647385408,18.94,158.25,158.17,4.7]
[1730647386005,3.1614,158.22,158.17,4.7]
[1730647386600,18.94,158.25,158.17,4.7]
[1730647386802,3.1614,158.21,158.17,4.7]
[1730647387612,3.1614,158.21,158.16,4.7186]
[1730647387815,20.3947,158.29,158.16,1.5562]
[1730647388006,20.3947,158.29,158.14,4.7]
[1730647388401,20.3947,158.29,158.1,4.7]
[1730647388596,18.94,158.23,158.13,3.1629]
[1730647388799,23.64,158.23,158.13,3.1629]
[1730647389203,23.64,158.23,158.12,3.1632]
[1730647389615,23.64,158.23,158.11,4.7]
[1730647390411,3.1624,158.17,158.12,3.1632]
[1730647391715,1.741,158.22,158.13,3.1629]
[1730647391916,1.741,158.22,158.11,4.7]
[1730647392216,23.64,158.23,158.11,4.7]
[1730647392404,3.162,158.19,158.14,3.1627]
[1730647393709,18.94,158.26,158.11,4.7]
[1730647394016,1.7425,158.27,158.11,4.7]
[1730647394017,6.4425,158.27,158.11,4.7]
[1730647394214,3.1607,158.25,158.2,3.1614]
[1730647394408,4.86981045,158.32,158.2,3.1614]
[1730647394623,4.7,158.31,158.2,3.1614]
[1730647394916,1.7436,158.32,158.18,3.1726]
[1730647395119,4.7,158.31,158.18,3.1726]
[1730647395506,4.7,158.31,158.22,3.1612]
[1730647395708,25.3836,158.32,158.18,3.1726]
[1730647396005,3.1598,158.3,158.25,3.1605]
[1730647396215,1.5435,158.34,158.23,4.7]
[1730647396413,1.5435,158.34,158.24,4.7]
[1730647396610,1.5435,158.34,158.25,1.5322]
[1730647396812,1.5435,158.34,158.25,3.1092]
[1730647397117,23.64,158.36,158.27,3.16]
[1730647398011,3.1601,158.28,158.25,3.1092]
[1730647398218,23.64,158.36,158.2,4.7]
[1730647399121,1.08235392,158.35,158.2,4.7]
[1730647399321,3.1608,158.25,158.2,7.8616]
[1730647400019,23.64,158.3,158.16,4.6454]
[1730647400215,18.94,158.28,158.16,4.6454]
[1730647400812,3.1613,158.22,158.17,3.1622]
[1730647401416,3.3325,158.29,158.16,4.6454]
[1730647401611,3.1608,158.25,158.16,9.3454]
[1730647401807,22.2725,158.29,158.16,9.3454]
[1730647402008,3.1608,158.25,158.19,3.1617]
[1730647402626,3.1604,158.26,158.21,3.1614]
[1730647402915,1.5924,158.29,158.16,7.73027486]
[1730647403114,3.1608,158.24,158.19,3.1618]
[1730647403315,3.18288769,158.24,158.17,4.7]
[1730647403515,1.5924,158.29,158.16,4.6454]
[1730647403713,18.94,158.26,158.16,7.8077]
[1730647404320,18.94,158.26,158.16,4.6454]
[1730647404521,18.94,158.26,158.17,3.1622]
[1730647404722,1.5924,158.29,158.17,3.1622]
[1730647405020,3.1614,158.22,158.17,3.1622]
[1730647405614,18.94,158.22,158.0,3.13230042]
[1730647405826,3.1622,158.18,158.13,3.1629]
[1730647406020,18.94,158.22,158.13,3.1629]
[1730647406339,3.1622,158.18,158.13,3.1629]
[1730647407012,3.1623,158.17,158.13,3.1629]
[1730647407718,3.1619,158.19,158.14,3.1627]
[1730647408320,18.94,158.23,158.14,3.1627]
[1730647408620,3.1621,158.18,158.14,3.1627]
[1730647409716,18.94,158.23,158.1,3.15704406]
[1730647409913,18.94,158.23,158.08,9.3481]
[1730647410326,18.94,158.23,158.12,3.1631]
[1730647410618,18.94,158.23,158.08,12.58607628]
[1730647411325,18.94,158.23,158.12,3.1632]
[1730647411920,18.94,158.23,158.15,3.1626]
[1730647412117,18.94,158.23,158.08,12.58607628]
[1730647412526,3.162,158.19,158.14,3.1628]
[1730647412724,18.94,158.23,158.14,3.1628]
[1730647413133,3.162,158.19,158.14,3.1628]
[1730647414528,4.41224183,158.24,158.08,12.58607628]
[1730647415027,18.94,158.23,158.08,12.58607628]
[1730647415225,3.1619,158.19,158.13,3.163]
[1730647415531,18.94,158.23,158.13,3.163]
[1730647416222,18.94,158.23,158.08,4.6481]
[1730647416626,18.94,158.23,158.12,3.1631]
[1730647417128,18.94,158.23,158.13,3.163]
[1730647417324,18.94,158.21,158.08,4.6481]
[1730647417624,3.1624,158.17,158.08,7.7633585]
[1730647417817,3.1624,158.17,158.12,3.1631]
[1730647418421,3.1624,158.17,158.08,7.7633585]
[1730647419122,3.1625,158.16,158.12,3.163]
[1730647421227,1.5125,158.21,158.08,7.7633585]
[1730647422126,3.1621,158.18,158.14,3.1627]
[1730647423122,1.5125,158.21,158.08,7.7633585]
[1730647423335,3.1619,158.19,158.15,3.1625]
[1730647423537,1.5125,158.21,158.15,3.1625]
[1730647423827,1.5125,158.21,158.08,7.7633585]
[1730647424034,3.162,158.18,158.14,3.1627]
[1730647425335,1.5125,158.21,158.08,4.6481]
[1730647426035,1.5125,158.21,158.1,3.1635]
[1730647426427,3.1627,158.15,158.1,3.1635]
[1730647427632,3.1622,158.18,158.09,3.10280263]
[1730647428036,3.1622,158.17,158.13,3.1629]
[1730647429333,1.5125,158.21,158.13,3.1629]
[1730647429530,3.1622,158.18,158.13,3.1629]
[1730647429731,1.5125,158.21,158.13,3.1629]
[1730647430443,1.5125,158.21,158.14,3.1627]
[1730647430637,4.68,158.23,158.09,3.21487091]
[1730647430943,4.41224183,158.24,158.08,4.6481]
[1730647430944,3.19594183,158.24,158.08,4.6481]
[1730647431142,3.1614,158.21,158.16,3.1622]
[1730647431648,3.1621,158.18,158.13,7.8429]
[1730647431829,3.1621,158.18,158.13,3.1629]
[1730647432230,3.1621,158.18,158.14,3.1628]
[1730647432537,18.94,158.24,158.11,4.68]
[1730647432834,4.68,158.25,158.11,4.68]
[1730647433035,3.1615,158.21,158.11,4.68]
[1730647433231,18.94,158.24,158.11,4.68]
[1730647433432,18.94,158.24,158.14,3.1627]
[1730647433632,22.0837277,158.24,158.11,4.68]
[1730647433938,22.0837277,158.24,158.13,3.163]
[1730647434138,3.1622,158.18,158.13,3.163]
[1730647436146,22.5647277,158.24,158.13,3.163]
[1730647437334,3.1623,158.17,158.13,3.163]
[1730647440145,22.5647277,158.24,158.11,3.1634]
[1730647440737,3.1625,158.16,158.11,3.1634]
[1730647441537,3.1625,158.16,158.08,4.6481]
[1730647441538,3.1625,158.16,158.12,3.1632]
[1730647441845,22.5647277,158.24,158.08,12.55700298]
[1730647442042,22.5647277,158.24,158.13,3.1629]
[1730647442337,18.94,158.22,158.08,7.7877]
[1730647442538,1.1693,158.21,158.05,6.1542]
[1730647442736,1.1693,158.21,158.07,3.1642]
[1730647442936,3.1633,158.12,158.07,3.1642]
[1730647443343,3.1637,158.1,158.05,9.3187]
[1730647443546,23.62,158.17,158.05,6.1542]
[1730647444155,23.62,158.17,157.93,6.334]
[1730647444351,2.025,158.16,157.97,4.5939]
[1730647444548,3.1646,158.06,158.0,3.1654]
[1730647444846,23.62,158.11,158.0,3.1654]
[1730647445046,3.1646,158.06,158.0,3.1654]
[1730647445343,23.62,158.11,157.97,4.5939]
[1730647445344,4.68,158.11,157.97,4.5939]
[1730647445539,1.1709,158.14,157.97,4.5939]
[1730647446338,1.1709,158.14,158.03,3.165]
[1730647446831,3.164,158.08,158.03,3.165]
[1730647447642,3.1638,158.1,158.01,3.13274161]
[1730647447854,3.1638,158.1,157.98,4.68]
[1730647448249,1.1709,158.14,157.98,4.68]
[1730647449449,3.164,158.09,158.05,3.1645]
[1730647449655,1.1709,158.14,158.05,3.1645]
[1730647451443,3.1638,158.1,158.05,3.1645]
[1730647451646,1.1709,158.14,158.07,3.1642]
[1730647451956,3.1632,158.12,158.07,3.1642]
[1730647452158,1.1709,158.14,158.07,3.1642]
[1730647452854,3.1635,158.11,158.06,3.1643]
[1730647453563,3.1634,158.12,158.07,3.1641]
[1730647453744,1.1709,158.14,158.05,1.5369]
[1730647454145,3.1637,158.1,158.05,4.7014]
[1730647455061,3.1639,158.09,158.05,4.7015]
[1730647456259,3.1644,158.07,158.03,3.1648]
[1730647456462,3.1644,158.07,158.01,4.68]
[1730647456857,3.1644,158.07,158.03,3.1649]
[1730647457363,1.1709,158.14,158.04,3.1648]
[1730647457556,1.1709,158.14,158.0,3.15149572]
[1730647458260,3.1641,158.08,158.04,3.1647]
[1730647458460,23.62,158.13,157.99,4.68]
[1730647459362,23.62,158.13,157.98,1.5172]
[1730647459555,18.94,158.11,157.99,4.68]
[1730647459957,3.1647,158.05,158.01,3.1653]
[1730647460662,3.1647,158.05,158.02,3.1652]
[1730647461165,18.94,158.11,157.98,6.1972]
[1730647461473,18.94,158.11,158.01,3.1653]
[1730647462466,18.94,158.11,157.98,6.1972]
[1730647463355,3.1647,158.05,158.01,3.1653]
[1730647467965,3.1642,158.08,158.04,3.1648]
[1730647468166,20.1109,158.14,157.98,1.5172]
[1730647468370,4.68,158.13,157.98,1.5172]
[1730647468577,3.1638,158.09,158.05,3.1644]
[1730647469476,3.1638,158.09,158.01,4.68]
[1730647469660,3.1638,158.09,158.06,3.1644]
[1730647469860,3.1637,158.1,158.01,4.68]
[1730647470059,4.68,158.13,158.01,4.68]
[1730647470759,3.164,158.09,158.05,3.1646]
[1730647471372,3.1644,158.07,158.03,3.1649]
[1730647471779,23.62,158.13,157.99,4.68]
[1730647472759,23.62,158.13,158.03,3.1649]
[1730647473665,3.1641,158.08,158.03,3.1649]
[1730647473866,23.62,158.13,158.03,3.1649]
[1730647474065,3.1642,158.07,158.03,3.1649]
[1730647474375,23.62,158.13,157.99,4.68]
[1730647474573,23.62,158.13,157.98,1.5172]
[1730647474767,3.1645,158.06,158.02,3.1652]
[1730647474960,3.1645,158.06,157.98,1.5172]
[1730647475174,23.62,158.13,157.98,1.5172]
[1730647475571,3.1646,158.06,158.01,3.1653]
[1730647476170,3.1646,158.06,158.0,3.1655]
[1730647476375,3.1647,158.05,157.98,1.5172]
[1730647477079,23.62,158.13,157.98,1.5172]
[1730647477769,23.62,158.13,158.01,3.1653]
[1730647477972,22.1037,158.1,158.01,3.1653]
[1730647478170,1.4804,158.09,158.01,3.1653]
[1730647478372,1.4804,158.09,158.02,3.1652]
[1730647478671,3.1645,158.06,158.02,3.1652]
[1730647479768,3.1642,158.07,158.03,3.1649]
[1730647479972,4.68,158.12,157.98,1.5172]
[1730647480475,3.1639,158.09,158.05,3.1644]
[1730647481672,3.1641,158.08,158.04,3.1647]
[1730647482364,23.62,158.12,158.02,3.165]
[1730647483579,3.1644,158.06,158.02,3.165]
[1730647483974,23.62,158.12,158.01,3.1653]
[1730647484174,3.1646,158.06,158.01,3.1653]
[1730647485573,3.1646,158.05,158.01,3.1653]
[1730647487383,23.62,158.12,157.98,1.5172]
[1730647487590,29.9465,158.12,157.98,1.5172]
[1730647487771,3.1649,158.04,158.0,3.1655]
[1730647487975,29.9465,158.12,157.98,1.5172]
[1730647488275,23.62,158.12,157.94,3.20518884]
[1730647488466,23.62,158.12,157.96,1.5363]
[1730647488467,18.94,158.1,157.96,1.5363]
[1730647488867,3.1643,158.07,158.03,3.165]
[1730647489076,23.62,158.12,157.96,1.5363]
[1730647489471,3.1646,158.06,158.01,3.1653]
[1730647489664,23.62,158.12,157.96,1.5363]
[1730647490783,18.94,158.12,157.96,1.5363]
[1730647491080,4.68,158.11,157.96,1.5363]
[1730647491275,20.1109,158.14,157.96,1.5363]
[1730647491479,4.68,158.13,157.96,1.5363]
[1730647492069,4.68,158.13,158.05,3.1644]
[1730647492381,4.68,158.13,158.01,4.68]
[1730647492581,4.68,158.13,158.02,1.568]
[1730647493482,3.1637,158.1,158.05,3.1645]
[1730647493884,23.62,158.13,158.02,1.568]
[1730647494073,3.1645,158.06,158.02,1.568]
[1730647494781,3.1645,158.06,158.02,4.7331]
[1730647494984,3.1647,158.05,158.02,1.568]
[1730647495676,3.1649,158.04,158.02,1.568]
[1730647496080,29.9462,158.13,158.02,1.568]
[1730647496285,29.9462,158.13,158.03,3.1649]
[1730647496286,3.1646,158.06,158.03,3.1649]
[1730647496484,3.1646,158.06,158.02,1.568]
[1730647496876,3.1646,158.06,158.02,4.7331]
[1730647497073,3.1647,158.05,158.02,4.7331]
[1730647497287,3.1647,158.05,158.02,1.568]
[1730647497782,3.1648,158.04,158.02,1.568]
[1730647498581,23.62,158.13,157.96,1.5363]
[1730647498783,3.1654,158.01,157.98,3.1659]
[1730647499788,3.1653,158.02,157.98,3.1659]
[1730647500486,4.68,158.07,157.98,3.1659]
[1730647500694,3.1654,158.01,157.98,3.1659]
[1730647501193,18.94,158.11,157.96,1.5363]
[1730647501194,4.68,158.11,157.96,1.5363]
[1730647501688,3.1645,158.06,158.03,3.1649]
[1730647501889,4.68,158.11,157.96,1.5363]
[1730647502090,1.1709,158.14,157.96,1.5363]
[1730647502283,4.68,158.13,157.96,1.5363]
[1730647502688,1.1709,158.14,158.07,3.164]
[1730647502689,3.1635,158.11,158.07,3.164]
[1730647502996,44.21801221,158.16,157.96,1.5363]
[1730647502997,43.73651221,158.16,158.06,3.08684548]
[1730647503187,3.1632,158.13,158.09,3.1638]
[1730647503382,43.73651221,158.16,158.07,2.9116]
[1730647503383,42.73651221,158.16,158.07,2.9116]
[1730647503692,42.73651221,158.16,158.04,4.68]
[1730647503693,3.1637,158.1,158.06,3.1644]
[1730647503898,3.1637,158.1,158.05,1.4415]
[1730647504191,3.1631,158.13,158.09,3.1638]
[1730647504388,42.73651221,158.16,158.05,4.57138977]
[1730647504707,42.73651221,158.16,158.05,1.4415]
[1730647504992,23.6,158.22,158.05,4.59417792]
[1730647505197,6.1162,158.22,158.05,1.4415]
[1730647505385,3.1621,158.18,158.13,3.1628]
[1730647505682,3.1621,158.18,158.05,1.4415]
[1730647505683,3.1621,158.18,158.1,7.78514672]
[1730647506000,3.1618,158.2,158.11,2.8773]
[1730647506290,1.4562,158.22,158.11,2.8773]
[1730647506495,1.4562,158.22,158.15,3.1625]
[1730647506681,1.4562,158.22,158.12,1.3268]
[1730647507082,1.4562,158.22,158.07,4.66]
[1730647507297,0.1349,158.21,158.07,4.66]
[1730647507589,0.1349,158.21,158.03,7.425]
[1730647507795,0.1349,158.21,158.03,2.765]
[1730647507989,18.94,158.19,158.03,1.3268]
[1730647508189,18.94,158.19,158.01,57.82990063]
[1730647508190,18.94,158.17,158.01,57.82990063]
[1730647508395,0.8243,158.16,158.01,57.82990063]
[1730647508695,18.94,158.15,158.01,60.99530063]
[1730647508993,18.94,158.13,157.97,4.66]
[1730647509297,3.1648,158.05,158.0,3.1656]
[1730647509790,23.6,158.12,157.97,4.66]
[1730647510096,3.1648,158.04,157.97,4.66]
[1730647510392,23.6,158.12,157.97,4.66]
[1730647511195,3.1643,158.07,158.02,3.1651]
[1730647511790,4.66,158.12,158.04,3.1647]
[1730647511995,44.11991742,158.14,158.03,7.82027398]
[1730647512193,44.11991742,158.14,158.04,2.6993]
[1730647512786,44.11991742,158.14,158.06,3.1643]
[1730647512787,3.1634,158.12,158.06,3.1643]
[1730647512986,44.11991742,158.14,158.06,3.1643]
[1730647513287,44.11991742,158.14,158.04,2.6993]
[1730647513288,3.1642,158.08,158.04,2.6993]
[1730647513593,18.94,158.13,158.04,2.6993]
[1730647514086,3.164,158.09,158.04,5.8641]
[1730647514486,18.94,158.13,158.04,2.6993]
[1730647514487,3.1641,158.08,158.04,2.6993]
[1730647515293,44.11991742,158.14,158.04,2.6993]
[1730647516495,3.1638,158.1,158.06,3.1644]
[1730647518084,3.1643,158.07,158.04,2.6993]
[1730647518997,44.11991742,158.14,158.04,2.6993]
[1730647519292,3.1643,158.07,158.04,2.6993]
[1730647519687,3.1643,158.07,158.04,5.864]
[1730647520081,44.11991742,158.14,158.04,2.6993]
[1730647520296,3.1634,158.11,158.07,3.1641]
[1730647520702,44.11991742,158.14,158.07,3.1641]
[1730647521191,44.11991742,158.14,158.04,2.6993]
[1730647521192,3.1639,158.09,158.05,3.1645]
[1730647521495,44.11991742,158.14,158.04,2.6993]
[1730647522098,42.73921742,158.14,158.04,2.6993]
[1730647522596,42.73921742,158.14,158.08,3.1639]
[1730647523182,3.1634,158.12,158.08,3.1639]
[1730647524196,3.1638,158.09,158.06,3.1643]
[1730647525186,18.94,158.16,158.04,2.6993]
[1730647525397,3.1639,158.09,158.05,3.1645]
[1730647526601,3.1635,158.11,158.04,2.6993]
[1730647526791,18.94,158.16,158.04,2.6993]
[1730647527594,3.1639,158.09,158.04,2.6993]
[1730647528101,18.94,158.16,158.04,2.6993]
[1730647528707,3.1631,158.13,158.06,3.1643]
[1730647528906,18.94,158.16,158.06,3.1643]
[1730647529399,3.1639,158.09,158.06,3.1643]
[1730647530302,3.1643,158.07,158.04,5.864]
[1730647531194,1.4021,158.18,158.04,2.6993]
[1730647531800,0.8214,158.21,158.04,2.6993]
[1730647531995,8.53511805,158.37,158.04,2.6993]